Workbook

Sheet Burndown Chart
D1: Burndown Chart | L1: Customize the Legend
L2: Planned Effort
L3: Hours Remaining

Sheet Input
C1: Dates can be entered till column BJ, hence it supports upto 60 days (time duration). Tasks can be entered till row 202, hence upto 200 tasks can be entered. Enter Remaining Effort to complete the task at the end of that day only - 0 would mean that the task is completed | N1: Validations - Remaining Efforts can not be > Planned Effort, Next Day's Remaining Effort should be <= Previous Day's Remaining Effort, Negative entry is not allowed, Planned Effort, if Entered, should be >=0, Weekend date will be highlighted in Orange.
A2: Task / Story / Sprints | B2: =IF('Burndown Chart'!$L$2="","Planned Effort",'Burndown Chart'!$L$2) -> Planned Effort | C2: 2016-01-01 | D2: 2016-01-02 | E2: 2016-01-03 | F2: 2016-01-04 | G2: 2016-01-05 | H2: 2016-01-06 | I2: 2016-01-07 | J2: 2016-01-08 | K2: 2016-01-09 | L2: 2016-01-10 | M2: 2016-01-11 | N2: 2016-01-12 | O2: 2016-01-13 | P2: 2016-01-14 | Q2: 2016-01-15 | R2: 2016-01-16 | S2: 2016-01-17
A3: Task 1 | B3: 20 | C3: 15 | D3: 5 | E3: 0
A4: Task 2 | B4: 60 | C4: 60 | D4: 60 | E4: 0 | F4: 0 | G4: 0 | H4: 60 | I4: 60 | J4: 60 | K4: 50 | L4: 30 | M4: 20 | N4: 0
A5: Task 3 | B5: 80 | C5: 80 | D5: 80 | E5: 80 | F5: 80 | G5: 80 | H5: 80 | I5: 80 | J5: 80 | K5: 80 | L5: 80 | M5: 80 | N5: 50 | O5: 50 | P5: 50 | Q5: 50 | R5: 20 | S5: 0
A6: Task 4 | B6: 10 | C6: 10 | D6: 10 | E6: 10 | F6: 10 | G6: 10 | H6: 10 | I6: 10 | J6: 10 | K6: 10 | L6: 10 | M6: 10 | N6: 10 | O6: 0
A7: Task 5 | B7: 40 | C7: 30 | D7: 30 | E7: 30 | F7: 30 | G7: 30 | H7: 30 | I7: 30 | J7: 30 | K7: 30 | L7: 30 | M7: 10 | N7: 5 | O7: 0
A8: Task 6 | B8: 30 | C8: 10 | D8: 0
A9: Task 7 | B9: 40 | C9: 10 | D9: 0 | E9: 0 | F9: 0
A10: Task 8 | B10: 40 | C10: 40 | D10: 40 | E10: 40 | F10: 40 | G10: 40 | H10: 0
A11: Task 9 | B11: 100 | C11: 90 | D11: 70 | E11: 50 | F11: 40 | G11: 20 | H11: 10 | I11: 0
A12: Task 10 | B12: 90 | C12: 90 | D12: 90 | E12: 90 | F12: 20 | G12: 0
A13: Task 11 | B13: 100 | C13: 100 | D13: 100 | E13: 100 | F13: 100 | G13: 100 | H13: 100 | I13: 100 | J13: 100 | K13: 100 | L13: 60 | M13: 30 | N13: 0
A14: Task 12 | B14: 40 | C14: 40 | D14: 40 | E14: 40 | F14: 40 | G14: 40 | H14: 40 | I14: 40 | J14: 40 | K14: 40 | L14: 40 | M14: 40 | N14: 40 | O14: 40 | P14: 40 | Q14: 0
A15: Task 13 | B15: 100 | C15: 100 | D15: 100 | E15: 100 | F15: 100 | G15: 70 | H15: 70 | I15: 70 | J15: 70 | K15: 70 | L15: 50 | M15: 20 | N15: 20 | O15: 20 | P15: 20 | Q15: 20 | R15: 0
A16: Task 14 | B16: 30 | C16: 30 | D16: 30 | E16: 30 | F16: 30 | G16: 30 | H16: 30 | I16: 30 | J16: 30 | K16: 5 | L16: 5 | M16: 5 | N16: 5 | O16: 0
A17: Task 15 | B17: 70 | C17: 70 | D17: 70 | E17: 70 | F17: 70 | G17: 70 | H17: 70 | I17: 70 | J17: 70 | K17: 70 | L17: 70 | M17: 70 | N17: 70 | O17: 50 | P17: 40 | Q17: 30 | R17: 0

Sheet Final Data (hidden)
A1: Date | B1: Day 0 | C1: =IF(Input!C$2="","",Input!C$2) -> 2016-01-01 | D1: =IF(Input!D$2="","",Input!D$2) -> 2016-01-02 | E1: =IF(Input!E$2="","",Input!E$2) -> 2016-01-03 | F1: =IF(Input!F$2="","",Input!F$2) -> 2016-01-04 | G1: =IF(Input!G$2="","",Input!G$2) -> 2016-01-05 | H1: =IF(Input!H$2="","",Input!H$2) -> 2016-01-06 | I1: =IF(Input!I$2="","",Input!I$2) -> 2016-01-07 | J1: =IF(Input!J$2="","",Input!J$2) -> 2016-01-08 | K1: =IF(Input!K$2="","",Input!K$2) -> 2016-01-09 | L1: =IF(Input!L$2="","",Input!L$2) -> 2016-01-10 | M1: =IF(Input!M$2="","",Input!M$2) -> 2016-01-11 | N1: =IF(Input!N$2="","",Input!N$2) -> 2016-01-12 | O1: =IF(Input!O$2="","",Input!O$2) -> 2016-01-13 | P1: =IF(Input!P$2="","",Input!P$2) -> 2016-01-14 | Q1: =IF(Input!Q$2="","",Input!Q$2) -> 2016-01-15 | R1: =IF(Input!R$2="","",Input!R$2) -> 2016-01-16 | S1: =IF(Input!S$2="","",Input!S$2) -> 2016-01-17 | T1: =IF(Input!T$2="","",Input!T$2) ->  | U1: =IF(Input!U$2="","",Input!U$2) ->  | V1: =IF(Input!V$2="","",Input!V$2) ->  | W1: =IF(Input!W$2="","",Input!W$2) ->  | X1: =IF(Input!X$2="","",Input!X$2) ->  | Y1: =IF(Input!Y$2="","",Input!Y$2) ->  | Z1: =IF(Input!Z$2="","",Input!Z$2) ->  | AA1: =IF(Input!AA$2="","",Input!AA$2) ->  | AB1: =IF(Input!AB$2="","",Input!AB$2) ->  | AC1: =IF(Input!AC$2="","",Input!AC$2) ->  | AD1: =IF(Input!AD$2="","",Input!AD$2) ->  | AE1: =IF(Input!AE$2="","",Input!AE$2) ->  | AF1: =IF(Input!AF$2="","",Input!AF$2) ->  | AG1: =IF(Input!AG$2="","",Input!AG$2) ->  | AH1: =IF(Input!AH$2="","",Input!AH$2) ->  | AI1: =IF(Input!AI$2="","",Input!AI$2) ->  | AJ1: =IF(Input!AJ$2="","",Input!AJ$2) ->  | AK1: =IF(Input!AK$2="","",Input!AK$2) ->  | AL1: =IF(Input!AL$2="","",Input!AL$2) ->  | AM1: =IF(Input!AM$2="","",Input!AM$2) ->  | AN1: =IF(Input!AN$2="","",Input!AN$2) ->  | AO1: =IF(Input!AO$2="","",Input!AO$2) ->  | AP1: =IF(Input!AP$2="","",Input!AP$2) ->  | AQ1: =IF(Input!AQ$2="","",Input!AQ$2) ->  | AR1: =IF(Input!AR$2="","",Input!AR$2) ->  | AS1: =IF(Input!AS$2="","",Input!AS$2) ->  | AT1: =IF(Input!AT$2="","",Input!AT$2) ->  | AU1: =IF(Input!AU$2="","",Input!AU$2) ->  | AV1: =IF(Input!AV$2="","",Input!AV$2) ->  | AW1: =IF(Input!AW$2="","",Input!AW$2) ->  | AX1: =IF(Input!AX$2="","",Input!AX$2) ->  | AY1: =IF(Input!AY$2="","",Input!AY$2) ->  | AZ1: =IF(Input!AZ$2="","",Input!AZ$2) ->  | BA1: =IF(Input!BA$2="","",Input!BA$2) ->  | BB1: =IF(Input!BB$2="","",Input!BB$2) ->  | BC1: =IF(Input!BC$2="","",Input!BC$2) ->  | BD1: =IF(Input!BD$2="","",Input!BD$2) ->  | BE1: =IF(Input!BE$2="","",Input!BE$2) ->  | BF1: =IF(Input!BF$2="","",Input!BF$2) ->  | BG1: =IF(Input!BG$2="","",Input!BG$2) ->  | BH1: =IF(Input!BH$2="","",Input!BH$2) ->  | BI1: =IF(Input!BI$2="","",Input!BI$2) ->  | BJ1: =IF(Input!BJ$2="","",Input!BJ$2) -> 
A2: =IF('Burndown Chart'!$L$2="","Planned Effort",'Burndown Chart'!$L$2) -> Planned Effort | B2: =SUM(Input!$B$3:$B$202) -> 850 | C2: =IF(C$1="","",B$2-$B$2/(SUMPRODUCT(--($C$1:$BJ$1<>"")))) -> 800 | D2: 750 | E2: 700 | F2: 650 | G2: 600 | H2: 550 | I2: 500 | J2: 450 | K2: 400 | L2: 350 | M2: 300 | N2: 250 | O2: 200 | P2: 150 | Q2: 100 | R2: 50 | S2: 0 | AI2: =IF(AI$1="","",AH$2-$B$2/(SUMPRODUCT(--($C$1:$BJ$1<>"")))) -> 
A3: =IF('Burndown Chart'!$L$3="","Hours Remaining",'Burndown Chart'!$L$3) -> Hours Remaining | B3: =SUM(Input!$B$3:$B$202) -> 850 | C3: =IF(C$1="","",SUM(Input!C$3:C$202)) -> 775 | D3: =IF(D$1="","",SUM(Input!D$3:D$202)) -> 725 | E3: =IF(E$1="","",SUM(Input!E$3:E$202)) -> 640 | F3: =IF(F$1="","",SUM(Input!F$3:F$202)) -> 560 | G3: =IF(G$1="","",SUM(Input!G$3:G$202)) -> 490 | H3: =IF(H$1="","",SUM(Input!H$3:H$202)) -> 500 | I3: =IF(I$1="","",SUM(Input!I$3:I$202)) -> 490 | J3: =IF(J$1="","",SUM(Input!J$3:J$202)) -> 490 | K3: =IF(K$1="","",SUM(Input!K$3:K$202)) -> 455 | L3: =IF(L$1="","",SUM(Input!L$3:L$202)) -> 375 | M3: =IF(M$1="","",SUM(Input!M$3:M$202)) -> 285 | N3: =IF(N$1="","",SUM(Input!N$3:N$202)) -> 200 | O3: =IF(O$1="","",SUM(Input!O$3:O$202)) -> 160 | P3: =IF(P$1="","",SUM(Input!P$3:P$202)) -> 150 | Q3: =IF(Q$1="","",SUM(Input!Q$3:Q$202)) -> 100 | R3: =IF(R$1="","",SUM(Input!R$3:R$202)) -> 20 | S3: =IF(S$1="","",SUM(Input!S$3:S$202)) -> 0 | T3: =IF(T$1="","",SUM(Input!T$3:T$202)) ->  | U3: =IF(U$1="","",SUM(Input!U$3:U$202)) ->  | V3: =IF(V$1="","",SUM(Input!V$3:V$202)) ->  | W3: =IF(W$1="","",SUM(Input!W$3:W$202)) ->  | X3: =IF(X$1="","",SUM(Input!X$3:X$202)) ->  | Y3: =IF(Y$1="","",SUM(Input!Y$3:Y$202)) ->  | Z3: =IF(Z$1="","",SUM(Input!Z$3:Z$202)) ->  | AA3: =IF(AA$1="","",SUM(Input!AA$3:AA$202)) ->  | AB3: =IF(AB$1="","",SUM(Input!AB$3:AB$202)) ->  | AC3: =IF(AC$1="","",SUM(Input!AC$3:AC$202)) ->  | AD3: =IF(AD$1="","",SUM(Input!AD$3:AD$202)) ->  | AE3: =IF(AE$1="","",SUM(Input!AE$3:AE$202)) ->  | AF3: =IF(AF$1="","",SUM(Input!AF$3:AF$202)) ->  | AG3: =IF(AG$1="","",SUM(Input!AG$3:AG$202)) ->  | AH3: =IF(AH$1="","",SUM(Input!AH$3:AH$202)) ->  | AI3: =IF(AI$1="","",SUM(Input!AI$3:AI$202)) ->  | AJ3: =IF(AJ$1="","",SUM(Input!AJ$3:AJ$202)) ->  | AK3: =IF(AK$1="","",SUM(Input!AK$3:AK$202)) ->  | AL3: =IF(AL$1="","",SUM(Input!AL$3:AL$202)) ->  | AM3: =IF(AM$1="","",SUM(Input!AM$3:AM$202)) ->  | AN3: =IF(AN$1="","",SUM(Input!AN$3:AN$202)) ->  | AO3: =IF(AO$1="","",SUM(Input!AO$3:AO$202)) ->  | AP3: =IF(AP$1="","",SUM(Input!AP$3:AP$202)) ->  | AQ3: =IF(AQ$1="","",SUM(Input!AQ$3:AQ$202)) ->  | AR3: =IF(AR$1="","",SUM(Input!AR$3:AR$202)) ->  | AS3: =IF(AS$1="","",SUM(Input!AS$3:AS$202)) ->  | AT3: =IF(AT$1="","",SUM(Input!AT$3:AT$202)) ->  | AU3: =IF(AU$1="","",SUM(Input!AU$3:AU$202)) ->  | AV3: =IF(AV$1="","",SUM(Input!AV$3:AV$202)) ->  | AW3: =IF(AW$1="","",SUM(Input!AW$3:AW$202)) ->  | AX3: =IF(AX$1="","",SUM(Input!AX$3:AX$202)) ->  | AY3: =IF(AY$1="","",SUM(Input!AY$3:AY$202)) ->  | AZ3: =IF(AZ$1="","",SUM(Input!AZ$3:AZ$202)) ->  | BA3: =IF(BA$1="","",SUM(Input!BA$3:BA$202)) ->  | BB3: =IF(BB$1="","",SUM(Input!BB$3:BB$202)) ->  | BC3: =IF(BC$1="","",SUM(Input!BC$3:BC$202)) ->  | BD3: =IF(BD$1="","",SUM(Input!BD$3:BD$202)) ->  | BE3: =IF(BE$1="","",SUM(Input!BE$3:BE$202)) ->  | BF3: =IF(BF$1="","",SUM(Input!BF$3:BF$202)) ->  | BG3: =IF(BG$1="","",SUM(Input!BG$3:BG$202)) ->  | BH3: =IF(BH$1="","",SUM(Input!BH$3:BH$202)) ->  | BI3: =IF(BI$1="","",SUM(Input!BI$3:BI$202)) ->  | BJ3: =IF(BJ$1="","",SUM(Input!BJ$3:BJ$202)) -> 
A4: Completed Tasks | B4: 0 | C4: =IF(C$1="","",CountCTs(Input!C$3:C$202)) -> 0 | D4: =IF(D$1="","",CountCTs(Input!D$3:D$202)) -> 2 | E4: =IF(E$1="","",CountCTs(Input!E$3:E$202)) -> 2 | F4: =IF(F$1="","",CountCTs(Input!F$3:F$202)) -> 0 | G4: =IF(G$1="","",CountCTs(Input!G$3:G$202)) -> 1 | H4: =IF(H$1="","",CountCTs(Input!H$3:H$202)) -> 1 | I4: =IF(I$1="","",CountCTs(Input!I$3:I$202)) -> 1 | J4: =IF(J$1="","",CountCTs(Input!J$3:J$202)) -> 0 | K4: =IF(K$1="","",CountCTs(Input!K$3:K$202)) -> 0 | L4: =IF(L$1="","",CountCTs(Input!L$3:L$202)) -> 0 | M4: =IF(M$1="","",CountCTs(Input!M$3:M$202)) -> 0 | N4: =IF(N$1="","",CountCTs(Input!N$3:N$202)) -> 1 | O4: =IF(O$1="","",CountCTs(Input!O$3:O$202)) -> 3 | P4: =IF(P$1="","",CountCTs(Input!P$3:P$202)) -> 0 | Q4: =IF(Q$1="","",CountCTs(Input!Q$3:Q$202)) -> 1 | R4: =IF(R$1="","",CountCTs(Input!R$3:R$202)) -> 2 | S4: =IF(S$1="","",CountCTs(Input!S$3:S$202)) -> 1 | T4: =IF(T$1="","",CountCTs(Input!T$3:T$202)) ->  | U4: =IF(U$1="","",CountCTs(Input!U$3:U$202)) ->  | V4: =IF(V$1="","",CountCTs(Input!V$3:V$202)) ->  | W4: =IF(W$1="","",CountCTs(Input!W$3:W$202)) ->  | X4: =IF(X$1="","",CountCTs(Input!X$3:X$202)) ->  | Y4: =IF(Y$1="","",CountCTs(Input!Y$3:Y$202)) ->  | Z4: =IF(Z$1="","",CountCTs(Input!Z$3:Z$202)) ->  | AA4: =IF(AA$1="","",CountCTs(Input!AA$3:AA$202)) ->  | AB4: =IF(AB$1="","",CountCTs(Input!AB$3:AB$202)) ->  | AC4: =IF(AC$1="","",CountCTs(Input!AC$3:AC$202)) ->  | AD4: =IF(AD$1="","",CountCTs(Input!AD$3:AD$202)) ->  | AE4: =IF(AE$1="","",CountCTs(Input!AE$3:AE$202)) ->  | AF4: =IF(AF$1="","",CountCTs(Input!AF$3:AF$202)) ->  | AG4: =IF(AG$1="","",CountCTs(Input!AG$3:AG$202)) ->  | AH4: =IF(AH$1="","",CountCTs(Input!AH$3:AH$202)) ->  | AI4: =IF(AI$1="","",CountCTs(Input!AI$3:AI$202)) ->  | AJ4: =IF(AJ$1="","",CountCTs(Input!AJ$3:AJ$202)) ->  | AK4: =IF(AK$1="","",CountCTs(Input!AK$3:AK$202)) ->  | AL4: =IF(AL$1="","",CountCTs(Input!AL$3:AL$202)) ->  | AM4: =IF(AM$1="","",CountCTs(Input!AM$3:AM$202)) ->  | AN4: =IF(AN$1="","",CountCTs(Input!AN$3:AN$202)) ->  | AO4: =IF(AO$1="","",CountCTs(Input!AO$3:AO$202)) ->  | AP4: =IF(AP$1="","",CountCTs(Input!AP$3:AP$202)) ->  | AQ4: =IF(AQ$1="","",CountCTs(Input!AQ$3:AQ$202)) ->  | AR4: =IF(AR$1="","",CountCTs(Input!AR$3:AR$202)) ->  | AS4: =IF(AS$1="","",CountCTs(Input!AS$3:AS$202)) ->  | AT4: =IF(AT$1="","",CountCTs(Input!AT$3:AT$202)) ->  | AU4: =IF(AU$1="","",CountCTs(Input!AU$3:AU$202)) ->  | AV4: =IF(AV$1="","",CountCTs(Input!AV$3:AV$202)) ->  | AW4: =IF(AW$1="","",CountCTs(Input!AW$3:AW$202)) ->  | AX4: =IF(AX$1="","",CountCTs(Input!AX$3:AX$202)) ->  | AY4: =IF(AY$1="","",CountCTs(Input!AY$3:AY$202)) ->  | AZ4: =IF(AZ$1="","",CountCTs(Input!AZ$3:AZ$202)) ->  | BA4: =IF(BA$1="","",CountCTs(Input!BA$3:BA$202)) ->  | BB4: =IF(BB$1="","",CountCTs(Input!BB$3:BB$202)) ->  | BC4: =IF(BC$1="","",CountCTs(Input!BC$3:BC$202)) ->  | BD4: =IF(BD$1="","",CountCTs(Input!BD$3:BD$202)) ->  | BE4: =IF(BE$1="","",CountCTs(Input!BE$3:BE$202)) ->  | BF4: =IF(BF$1="","",CountCTs(Input!BF$3:BF$202)) ->  | BG4: =IF(BG$1="","",CountCTs(Input!BG$3:BG$202)) ->  | BH4: =IF(BH$1="","",CountCTs(Input!BH$3:BH$202)) ->  | BI4: =IF(BI$1="","",CountCTs(Input!BI$3:BI$202)) ->  | BJ4: =IF(BJ$1="","",CountCTs(Input!BJ$3:BJ$202)) -> 
A5: Remaining Tasks | B5: =SUMPRODUCT(--(Input!$A$3:$A$202<>"")) -> 15 | C5: =IF(C$1="","",B$5-C4) -> 15 | D5: =IF(D$1="","",C$5-D4) -> 13 | E5: 11 | F5: 11 | G5: 10 | H5: 9 | I5: 8 | J5: 8 | K5: 8 | L5: 8 | M5: 8 | N5: 7 | O5: 4 | P5: 4 | Q5: 3 | R5: 1 | S5: 0
